fUSD/lending_fUSD_20240503
["ID","MTS","AMOUNT","RATE_DAILY","PERIOD"]
[325351789,1714746675151,-1457.02,0.00044383,32]
[325351790,1714746675161,-500.0,0.00044383,32]
[325351791,1714746675170,-500.0,0.00044383,32]
[325351792,1714746675181,-500.0,0.00044383,32]
[325351793,1714746675192,-1029.54,0.00044383,32]
[325351794,1714746675201,-1685.2,0.00044383,32]
[325351795,1714746675210,-1136.49,0.00044383,32]
[325351796,1714746675219,-494.48217696,0.00044383,32]
[325351797,1714746675228,-1121.46,0.00044383,32]
[325351798,1714746675239,-1018.24,0.00044383,32]
[325351799,1714746675249,-1747.57,0.00044383,32]
[325351800,1714746675260,-1473.01,0.00044383,32]
[325351801,1714746675270,-2447.31,0.00044383,32]
[325351802,1714746675280,-500.0,0.00044383,32]
[325351803,1714746675291,-1478.31,0.00044383,32]
[325351804,1714746675300,-500.0,0.00044383,32]
[325351805,1714746675310,-3130.3,0.00044383,32]
[325351806,1714746675320,-500.0,0.00044383,32]
[325351807,1714746675330,-750.0,0.00044383,30]
[325351808,1714746675340,-500.0,0.00044383,32]
[325351809,1714746675351,-500.0,0.00044383,32]
[325351810,1714746675360,-1148.07,0.00044383,32]
[325351811,1714746675369,-500.0,0.00044383,32]
[325351812,1714746675378,-500.0,0.00044383,32]
[325351813,1714746675387,-787.53,0.00044383,32]
[325351814,1714746675396,-500.0,0.00044383,32]
[325351815,1714746675406,-500.0,0.00044383,32]
[325351816,1714746675415,-500.0,0.00044383,30]
[325351817,1714746675425,-741.62,0.00044383,32]
[325351818,1714746675434,-2071.43,0.00044383,32]
[325351819,1714746675444,-500.0,0.00044383,32]
[325351820,1714746675453,-703.79,0.00044383,32]
[325351821,1714746675462,-597.33,0.00044383,32]
[325351822,1714746675471,-650.58,0.00044383,32]
[325351823,1714746675481,-1491.71,0.00044383,32]
[325351824,1714746675491,-1917.92,0.00044383,32]
[325351825,1714746675500,-500.0,0.00044383,32]
[325351826,1714746675510,-500.0,0.00044383,32]
[325351827,1714746675519,-502.85277453,0.00044383,32]
[325351828,1714746675528,-1119.34,0.00044383,32]
[325351829,1714746675538,-500.0,0.00044383,32]
[325351830,1714746675549,-509.96761043,0.00044383,32]
[325351831,1714746675559,-1257.22,0.00044383,32]
[325351832,1714746675569,-500.0,0.00044383,32]
[325351833,1714746675579,-3365.56,0.00044383,32]
[325351834,1714746675588,-500.0,0.00044383,32]
[325351835,1714746675597,-500.0,0.00044383,32]
[325351836,1714746675606,-500.0,0.00044383,32]
[325351837,1714746675616,-541.7,0.00044383,32]
[325351838,1714746675626,-823.1,0.00044383,32]
[325351839,1714746675636,-758.52,0.00044383,32]
[325351840,1714746675646,-778.01,0.00044383,32]
[325351841,1714746675655,-500.0,0.00044383,32]
[325351842,1714746675665,-500.0,0.00044383,32]
[325351843,1714746675675,-786.98,0.00044383,32]
[325351844,1714746675684,-784.51,0.00044383,32]
[325351845,1714746675695,-500.0,0.00044383,32]
[325351846,1714746675704,-391.92821265,0.00044383,32]
[325351847,1714746675713,-685.46,0.00044383,32]
[325351848,1714746675723,-500.0,0.00044383,32]
[325351849,1714746675733,-1468.01,0.00044383,32]
[325351850,1714746675742,-1070.78,0.00044383,32]
[325351851,1714746675752,-500.0,0.00044383,32]
[325351852,1714746675762,-642.68,0.00044383,32]
[325351853,1714746675771,-500.0,0.00044383,32]
[325351854,1714746675780,-3502.16,0.00044383,32]
[325351855,1714746675790,-500.0,0.00044383,32]
[325351856,1714746675799,-500.0,0.00044383,32]
[325351857,1714746675809,-914.69,0.00044383,32]
[325351858,1714746675818,-571.99,0.00044383,32]
[325351859,1714746675828,-622.24,0.00044383,32]
[325351860,1714746675837,-500.0,0.00044383,32]
[325351861,1714746675847,-787.31,0.00044383,32]
[325351862,1714746675856,-712.64,0.00044383,32]
[325351863,1714746675866,-1706.59,0.00044383,32]
[325351864,1714746675875,-500.0,0.00044383,32]
[325351865,1714746675887,-629.74,0.00044383,32]
[325351866,1714746675896,-1885.92,0.00044383,32]
[325351867,1714746675906,-500.0,0.00044383,32]
[325351868,1714746675916,-500.0,0.00044383,32]
[325351869,1714746675926,-500.0,0.00044383,32]
[325351870,1714746675935,-628.89,0.00044383,32]
[325351871,1714746675946,-500.0,0.00044383,32]
[325351872,1714746675955,-1595.77,0.00044383,32]
[325351873,1714746675964,-977.33,0.00044383,32]
[325351874,1714746675974,-500.0,0.00044383,32]
[325351875,1714746675983,-1305.85,0.00044383,32]
[325351876,1714746675993,-602.81,0.00044383,32]
[325351877,1714746676003,-500.0,0.00044383,32]
[325351878,1714746676013,-500.0,0.00044383,32]
[325351879,1714746676030,-500.0,0.00044383,32]
[325351880,1714746676039,-828.61,0.00044383,32]
[325351881,1714746676048,-506.88,0.00044383,32]
[325351882,1714746676058,-500.0,0.00044383,32]
[325351883,1714746676068,-539.84,0.00044383,32]
[325351884,1714746676078,-500.0,0.00044383,32]
[325351885,1714746676088,-1339.93,0.00044383,32]
[325351886,1714746676098,-500.0,0.00044383,32]
[325351887,1714746676107,-1652.48,0.00044383,32]
[325351888,1714746676117,-500.0,0.00044383,32]
[325351889,1714746676126,-2384.39,0.00044383,32]
[325351890,1714746676136,-500.0,0.00044383,32]
[325351891,1714746676146,-538.03,0.00044383,32]
[325351892,1714746676155,-1565.01,0.00044383,32]
[325351893,1714746676165,-520.13,0.00044383,32]
[325351894,1714746676175,-533.96,0.00044383,32]
[325351895,1714746676184,-1232.08,0.00044383,32]
[325351896,1714746676196,-500.0,0.00044383,32]
[325351897,1714746676206,-517.36402104,0.00044383,32]
[325351898,1714746676216,-1695.37,0.00044383,32]
[325351899,1714746676226,-500.0,0.00044383,32]
[325351900,1714746676240,-500.0,0.00044383,32]
[325351901,1714746676252,-974.96,0.00044383,32]
[325351902,1714746676262,-500.0,0.00044383,32]
[325351903,1714746676271,-961.82,0.00044383,32]
[325351904,1714746676282,-500.0,0.00044383,32]
[325351905,1714746676292,-500.0,0.00044383,32]
[325351906,1714746676302,-907.45,0.00044383,32]
[325351907,1714746676311,-1065.06,0.00044383,32]
[325351908,1714746676322,-1616.55,0.00044383,32]
[325351909,1714746676331,-1312.35,0.00044383,32]
[325351910,1714746676340,-500.0,0.00044383,32]
[325351911,1714746676349,-500.0,0.00044383,32]
[325351912,1714746676359,-4189.61,0.00044383,32]
[325351913,1714746676368,-670.89,0.00044383,32]
[325351914,1714746676377,-1694.36,0.00044383,32]
[325351915,1714746676387,-500.0,0.00044383,32]
[325351916,1714746676397,-1114.27,0.00044383,32]
[325351917,1714746676406,-500.0,0.00044383,32]
[325351918,1714746676416,-500.0,0.00044383,32]
[325351919,1714746676425,-500.0,0.00044383,32]
[325351920,1714746676435,-500.0,0.00044383,32]
[325351921,1714746676445,-813.59,0.00044383,32]
[325351922,1714746676454,-1257.48,0.00044383,32]
[325351923,1714746676464,-972.04,0.00044383,32]
[325351924,1714746676473,-1434.6,0.00044383,32]
[325351925,1714746676482,-274.88769612,0.00044383,32]
[325351926,1714746676491,-589.98,0.00044383,32]
[325351927,1714746676501,-500.0,0.00044383,32]
[325351928,1714746676510,-500.0,0.00044383,32]
[325351929,1714746676519,-1514.15,0.00044383,32]
[325351930,1714746676529,-5280.52,0.00044383,32]
[325351931,1714746676539,-500.0,0.00044383,32]
[325351932,1714746676548,-1507.48,0.00044383,32]
[325351933,1714746676557,-2112.57,0.00044383,32]
[325351934,1714746676567,-500.0,0.00044383,32]
[325351935,1714746676576,-500.0,0.00044383,32]
[325351936,1714746676586,-792.33,0.00044383,32]
[325351937,1714746676596,-500.0,0.00044383,32]
[325351938,1714746676605,-680.12,0.00044383,32]
[325351939,1714746676615,-1750.33,0.00044383,32]
[325351940,1714746676624,-2705.03,0.00044383,32]
[325351941,1714746676634,-568.36941795,0.00044383,32]
[325351942,1714746676644,-1208.2,0.00044383,32]
[325351943,1714746676654,-500.0,0.00044383,32]
[325351944,1714746676664,-500.0,0.00044383,32]
[325351945,1714746676675,-500.0,0.00044383,32]
[325351946,1714746676684,-500.0,0.00044383,32]
[325351947,1714746676695,-767.38,0.00044383,32]
[325351948,1714746676704,-500.0,0.00044383,32]
[325351949,1714746676714,-500.0,0.00044383,32]
[325351950,1714746676723,-500.0,0.00044383,32]
[325351951,1714746676733,-37367.74,0.00044383,32]
[325351952,1714746676743,-500.0,0.00044383,32]
[325351953,1714746676752,-500.0,0.00044383,32]
[325351954,1714746676762,-500.0,0.00044383,32]
[325351955,1714746676771,-6226.16,0.00044383,32]
[325351956,1714746676781,-2034.22,0.00044383,32]
[325351957,1714746677000,-508.54,0.00044383,32]
[325351958,1714746677010,-864.76,0.00044383,32]
[325351959,1714746677019,-500.0,0.00044383,32]
[325351960,1714746677029,-8107.87,0.00044383,32]
[325351961,1714746677038,-500.0,0.00044383,32]
[325351962,1714746677047,-500.0,0.00044383,32]
[325351963,1714746677057,-500.0,0.00044383,32]
[325351964,1714746677066,-500.0,0.00044383,32]
[325351965,1714746677075,-500.0,0.00044383,32]
[325351966,1714746677085,-500.0,0.00044383,32]
[325351967,1714746677094,-500.0,0.00044383,32]
[325351968,1714746677103,-1774.3,0.00044383,32]
[325351969,1714746677113,-518.47161736,0.00044383,32]
[325351970,1714746677122,-2932.29,0.00044383,32]
[325351971,1714746677132,-500.0,0.00044383,32]
[325351972,1714746677141,-4005.14,0.00044383,32]
[325351973,1714746677150,-437.24815078,0.00044383,32]
[325351974,1714746677160,-500.0,0.00044383,32]
[325351975,1714746677169,-1758.5,0.00044383,32]
[325351976,1714746677179,-1127.05,0.00044383,32]
[325351977,1714746677188,-12657.2,0.00044383,32]
[325351978,1714746677201,-2324.62,0.00044383,32]
[325351979,1714746677211,-929.53,0.00044383,32]
[325351980,1714746677220,-2460.77,0.00044383,32]
[325351981,1714746677230,-500.0,0.00044383,32]
[325351982,1714746677241,-500.0,0.00044383,32]
[325351983,1714746677251,-3068.12,0.00044383,32]
[325351984,1714746677264,-3041.65,0.00044383,32]
[325351985,1714746677274,-500.0,0.00044383,32]
[325351986,1714746677283,-500.0,0.00044383,32]
[325351987,1714746677293,-500.0,0.00044383,32]
[325351988,1714746677304,-747.02,0.00044383,32]
[325351989,1714746677314,-3573.52,0.00044383,32]
[325351990,1714746677323,-1021.14,0.00044383,32]
[325351991,1714746677333,-1270.89,0.00044383,32]
[325351992,1714746677342,-809.62,0.00044383,32]
[325351993,1714746677353,-500.0,0.00044383,32]
[325351994,1714746677362,-460.87796053,0.00044383,32]
[325351995,1714746677372,-4953.82,0.00044383,32]
[325351996,1714746677381,-3548.46,0.00044383,32]
[325351997,1714746677390,-258.87187835,0.00044383,32]
[325351998,1714746677399,-582.2,0.00044383,32]
[325351999,1714746677408,-1040.14,0.00044383,32]
[325352000,1714746677418,-500.0,0.00044383,32]
[325352001,1714746677428,-1047.49,0.00044383,32]
[325352002,1714746677437,-955.75,0.00044383,32]
[325352003,1714746677448,-3298.28,0.00044383,32]
[325352004,1714746677458,-51594.9,0.00044383,32]
[325352005,1714746677467,-1656.15,0.00044383,32]
[325352006,1714746677476,-1474.22,0.00044383,32]
[325352007,1714746677486,-502.0148554,0.00044383,32]
[325352008,1714746677495,-625.92,0.00044383,32]
[325352009,1714746677504,-500.0,0.00044383,32]
[325352010,1714746677514,-500.0,0.00044383,32]
[325352011,1714746677523,-3468.67,0.00044383,32]
[325352012,1714746677532,-4580.16,0.00044383,32]
[325352013,1714746677542,-500.0,0.00044383,32]
[325352014,1714746677551,-1244.31,0.00044383,32]
[325352015,1714746677560,-500.0,0.00044383,32]
[325352016,1714746677570,-500.0,0.00044383,32]
[325352017,1714746677580,-5536.23,0.00044383,32]
[325352018,1714746677589,-1062.47,0.00044383,32]
[325352019,1714746677599,-1533.26,0.00044383,32]
[325352020,1714746677608,-500.0,0.00044383,32]
[325352021,1714746677617,-500.0,0.00044383,32]
[325352022,1714746677627,-616.23,0.00044383,32]
[325352023,1714746677636,-1907.15,0.00044383,32]
[325352024,1714746677645,-2627.76,0.00044383,32]
[325352025,1714746677654,-500.0,0.00044383,32]
[325352026,1714746677664,-561.77249084,0.00044383,32]
[325352027,1714746677673,-1597.6,0.00044383,32]
[325352028,1714746677683,-1670.03,0.00044383,32]
[325352029,1714746677693,-3550.2,0.00044383,32]
[325352030,1714746677703,-2326.25,0.00044383,32]
[325352031,1714746677712,-521.95447222,0.00044383,32]
[325352032,1714746677722,-1369.27,0.00044383,32]
[325352033,1714746677731,-500.0,0.00044383,32]
[325352034,1714746677740,-6198.32,0.00044383,32]
[325352035,1714746677749,-1209.59,0.00044383,32]
[325352036,1714746677758,-500.0,0.00044383,32]
[325352037,1714746677768,-1472.25,0.00044383,32]
[325352038,1714746677778,-1142.67,0.00044383,32]
[325352039,1714746677787,-867.93,0.00044383,32]
[325352040,1714746677797,-1024.37,0.00044383,32]
[325352041,1714746677806,-500.0,0.00044383,32]
[325352042,1714746677815,-2000.0,0.00044383,120]
[325352043,1714746677825,-13396.13,0.00044383,32]
[325352044,1714746677834,-567.32,0.00044383,32]
[325352045,1714746677843,-7398.41,0.00044383,32]
[325352046,1714746677853,-1881.86,0.00044383,32]
[325352047,1714746677862,-500.0,0.00044383,32]
[325352048,1714746677872,-596.67241852,0.00044383,32]
[325352049,1714746677881,-8334.40131628,0.00044383,32]
[325352050,1714746678472,-5605.69868372,0.00044383,32]
[325352051,1714746678482,-1287.69,0.00044383,32]
[325352052,1714746678492,-1773.25,0.00044383,32]
[325352053,1714746678502,-603.26,0.00044383,32]
[325352054,1714746678511,-744.71,0.00044383,32]
[325352055,1714746678521,-754.55,0.00044383,32]
[325352056,1714746678530,-2706.62,0.00044383,32]
[325352057,1714746678540,-505.45930923,0.00044383,32]
[325352058,1714746678549,-2124.87,0.00044383,32]
[325352059,1714746678558,-500.0,0.00044383,32]
[325352060,1714746678568,-1591.92,0.00044383,32]
[325352061,1714746678578,-11324.53,0.00044383,32]
[325352062,1714746678587,-500.0,0.00044383,32]
[325352063,1714746678596,-887.28,0.00044383,32]
[325352064,1714746678606,-2068.41,0.00044383,32]
[325352065,1714746678615,-3463.47,0.00044383,32]
[325352066,1714746678625,-500.0,0.00044383,32]
[325352067,1714746678634,-894.84,0.00044383,32]
[325352068,1714746678644,-500.0,0.00044383,32]
[325352069,1714746678654,-23239.23,0.00044383,32]
[325352070,1714746678663,-1201.54,0.00044383,32]
[325352071,1714746678672,-851.19,0.00044383,32]
[325352072,1714746678682,-1074.86,0.00044383,32]
[325352073,1714746678694,-3337.15,0.00044383,32]
[325352074,1714746678703,-1218.81,0.00044383,32]
[325352075,1714746678712,-742.57,0.00044383,32]
[325352076,1714746678721,-1576.19,0.00044383,32]
[325352077,1714746678730,-500.0,0.00044383,32]
[325352078,1714746678739,-5205.55,0.00044383,32]
[325352079,1714746678748,-3565.4,0.00044383,32]
[325352080,1714746678757,-3375.64,0.00044383,32]
[325352081,1714746678766,-1901.61,0.00044383,32]
[325352082,1714746678775,-17781.87,0.00044383,32]
[325352083,1714746678785,-500.0,0.00044383,32]
[325352084,1714746678794,-500.0,0.00044383,32]
[325352085,1714746678803,-388.23145716,0.00044383,32]
[325352086,1714746678812,-7536.29,0.00044383,32]
[325352087,1714746678821,-64981.5,0.00044383,32]
[325352088,1714746678830,-5585.43,0.00044383,32]
[325352089,1714746678840,-500.0,0.00044383,32]
[325352090,1714746678850,-500.0,0.00044383,32]
[325352091,1714746678859,-908.24,0.00044383,32]
[325352092,1714746678868,-734.09,0.00044383,32]
[325352093,1714746678878,-500.0,0.00044383,32]
[325352094,1714746678888,-2683.29,0.00044383,32]
[325352095,1714746678899,-500.0,0.00044383,32]
[325352096,1714746678908,-500.0,0.00044383,32]
[325352097,1714746678918,-500.0,0.00044383,32]
[325352098,1714746678927,-2068.23,0.00044383,32]
[325352099,1714746678937,-607.88,0.00044383,32]
[325352100,1714746678949,-500.0,0.00044383,32]
[325352101,1714746678958,-2322.99,0.00044383,32]
[325352102,1714746678967,-3343.01,0.00044383,32]
[325352103,1714746678976,-8689.84,0.00044383,32]
[325352104,1714746678985,-996.84,0.00044383,32]
[325352105,1714746678995,-500.0,0.00044383,32]
[325352106,1714746679004,-5040.17,0.00044383,32]
[325352107,1714746679012,-6816.99,0.00044383,32]
[325352108,1714746679022,-1402.25,0.00044383,32]
[325352109,1714746679032,-2931.91,0.00044383,32]
[325352110,1714746679041,-500.0,0.00044383,32]
[325352111,1714746679050,-3700.79,0.00044383,32]
[325352112,1714746679059,-1201.93,0.00044383,32]
[325352113,1714746679068,-1245.76,0.00044383,32]
[325352114,1714746679078,-500.0,0.00044383,32]
[325352115,1714746679087,-1243.0,0.00044383,32]
[325352116,1714746679096,-250.08,0.00044383,32]
[325352117,1714746679106,-2687.77,0.00044383,32]
[325352118,1714746679115,-500.0,0.00044383,32]
[325352119,1714746679124,-4591.09,0.00044383,32]
[325352120,1714746679133,-500.0,0.00044383,32]
[325352121,1714746679143,-500.0,0.00044383,32]
[325352122,1714746679152,-500.0,0.00044383,32]
[325352123,1714746679162,-500.0,0.00044383,32]
[325352124,1714746679176,-4853.41,0.00044383,32]
[325352125,1714746679186,-1185.41,0.00044383,32]
[325352126,1714746679198,-500.0,0.00044383,32]
[325352127,1714746679439,-8164.95,0.00044383,32]
[325352128,1714746679452,-3730.76,0.00044383,32]
[325352129,1714746679463,-500.0,0.00044383,32]
[325352130,1714746679473,-500.0,0.00044383,32]
[325352131,1714746679483,-1540.42,0.00044383,32]
[325352132,1714746679492,-500.0,0.00044383,32]
[325352133,1714746679502,-3182.51,0.00044383,32]
[325352134,1714746679511,-500.0,0.00044383,32]
[325352135,1714746679520,-1415.55,0.00044383,32]
[325352136,1714746679530,-161.62337087,0.00044383,32]
[325352137,1714746679539,-500.0,0.00044383,32]
[325352138,1714746679548,-2666.07,0.00044383,32]
[325352139,1714746679558,-500.0,0.00044383,32]
[325352140,1714746679568,-2889.85,0.00044383,32]
[325352141,1714746679577,-500.0,0.00044383,32]
[325352142,1714746679587,-500.0,0.00044383,32]
[325352143,1714746679596,-846.23,0.00044383,32]
[325352144,1714746679605,-15603.99,0.00044383,32]
[325352145,1714746679615,-30016.03,0.00044383,32]
[325352146,1714746679624,-1599.69,0.00044383,32]
[325352147,1714746679633,-500.0,0.00044383,32]
[325352148,1714746679643,-500.0,0.00044383,32]
[325352149,1714746679652,-1657.71,0.00044383,32]
[325352150,1714746679661,-3731.53,0.00044383,32]
[325352151,1714746679671,-639.43452937,0.00044383,32]
[325352152,1714746679680,-5476.57,0.00044383,32]
[325352153,1714746679689,-551.82316499,0.00044383,32]
[325352154,1714746679700,-500.0,0.00044383,32]
[325352155,1714746679710,-500.0,0.00044383,32]
[325352156,1714746679719,-500.0,0.00044383,32]
[325352157,1714746679727,-500.0,0.00044383,32]
[325352158,1714746679737,-6135.37,0.00044383,32]
[325352159,1714746679746,-500.0,0.00044383,32]
[325352160,1714746679755,-25374.94,0.00044383,32]
[325352161,1714746679766,-500.0,0.00044383,32]
[325352162,1714746679775,-2342.49,0.00044383,32]
[325352163,1714746679785,-500.0,0.00044383,32]
[325352164,1714746679796,-821.0,0.00044383,32]
[325352165,1714746679805,-1169.1,0.00044383,32]
[325352166,1714746679815,-500.0,0.00044383,32]
[325352167,1714746679824,-500.0,0.00044383,32]
[325352168,1714746679834,-1120.0,0.00044383,32]
[325352169,1714746679843,-3674.07,0.00044383,32]
[325352170,1714746679853,-3212.31,0.00044383,32]
[325352171,1714746679862,-3465.66,0.00044383,32]
[325352172,1714746679872,-1520.01,0.00044383,32]
[325352173,1714746679882,-1113.03,0.00044383,32]
[325352174,1714746679892,-500.0,0.00044383,32]
[325352175,1714746679901,-1040.68,0.00044383,32]
[325352176,1714746679911,-3523.49,0.00044383,32]
[325352177,1714746679920,-2727.21,0.00044383,32]
[325352178,1714746679930,-500.0,0.00044383,32]
[325352179,1714746679939,-512.36,0.00044383,32]
[325352180,1714746679950,-500.0,0.00044383,32]
[325352181,1714746679959,-500.0,0.00044383,32]
[325352182,1714746679968,-500.0,0.00044383,32]
[325352183,1714746679976,-500.0,0.00044383,32]
[325352184,1714746679986,-500.0,0.00044383,32]
[325352185,1714746679995,-500.0,0.00044383,32]
[325352186,1714746680005,-1838.38,0.00044383,32]
[325352187,1714746680014,-500.0,0.00044383,32]
[325352188,1714746680023,-2793.15,0.00044383,32]
[325352189,1714746680033,-796.44,0.00044383,32]
[325352190,1714746680042,-3142.5,0.00044383,32]
[325352191,1714746680052,-4018.93,0.00044383,32]
[325352192,1714746680061,-500.0,0.00044383,32]
[325352193,1714746680071,-6266.77,0.00044383,32]
[325352194,1714746680081,-5956.63,0.00044383,21]
[325352195,1714746680092,-1667.83,0.00044383,32]
[325352196,1714746680102,-500.0,0.00044383,32]
[325352197,1714746680112,-24591.65,0.00044383,32]
[325352198,1714746680121,-500.0,0.00044383,32]
[325352199,1714746680131,-1692.75,0.00044383,32]
[325352200,1714746680140,-969.22,0.00044383,32]
[325352201,1714746680150,-796.61,0.00044383,32]
[325352202,1714746680159,-8737.7,0.00044383,32]
[325352203,1714746680169,-500.0,0.00044383,32]
[325352204,1714746680178,-500.0,0.00044383,32]
[325352205,1714746680188,-500.0,0.00044383,32]
[325352206,1714746680200,-2261.98,0.00044383,32]
[325352207,1714746680210,-5563.63,0.00044383,32]
[325352208,1714746680220,-4079.06,0.00044383,32]
[325352209,1714746680229,-12969.38,0.00044383,32]
[325352210,1714746680240,-3570.77,0.00044383,32]
[325352211,1714746680253,-2065.97,0.00044383,32]
[325352212,1714746680263,-2044.1,0.00044383,7]
[325352213,1714746680273,-1425.16,0.00044383,32]
[325352214,1714746680283,-1058.66,0.00044383,32]
[325352215,1714746680293,-500.0,0.00044383,32]
[325352216,1714746680303,-1199.81,0.00044383,32]
[325352217,1714746680312,-566.41756132,0.00044383,32]
[325352218,1714746680321,-500.0,0.00044383,32]
[325352219,1714746680331,-1933.49,0.00044383,32]
[325352220,1714746680342,-500.0,0.00044383,32]
[325352221,1714746680352,-7256.89,0.00044383,32]
[325352222,1714746680362,-3430.43,0.00044383,32]
[325352223,1714746680371,-8297.75,0.00044383,32]
[325352224,1714746680381,-500.0,0.00044383,32]
[325352225,1714746680390,-623.35,0.00044383,32]
[325352226,1714746680399,-4747.32,0.00044383,32]
[325352227,1714746680409,-2003.41,0.00044383,32]
[325352228,1714746680418,-542.42073274,0.00044383,32]
[325352229,1714746680429,-1472.96,0.00044383,32]
[325352230,1714746680439,-3069.44,0.00044383,32]
[325352231,1714746680451,-4532.93,0.00044383,32]
[325352232,1714746680461,-2960.83,0.00044383,32]
[325352233,1714746680470,-2882.74,0.00044383,32]
[325352234,1714746680479,-500.0,0.00044383,32]
[325352235,1714746680489,-1500.87,0.00044383,32]
[325352236,1714746680499,-2696.6,0.00044383,32]
[325352237,1714746680509,-2145.52,0.00044383,32]
[325352238,1714746680519,-500.0,0.00044383,32]
[325352239,1714746680528,-619.74,0.00044383,32]
[325352240,1714746680538,-838.74,0.00044383,32]
[325352241,1714746680547,-4299.24,0.00044383,32]
[325352242,1714746680557,-2166.4,0.00044383,32]
[325352243,1714746680567,-505.35745213,0.00044383,32]
[325352244,1714746680576,-500.0,0.00044383,32]
[325352245,1714746680586,-1928.88,0.00044383,32]
[325352246,1714746680595,-1779.86,0.00044383,32]
[325352247,1714746680604,-786.4,0.00044383,32]
[325352248,1714746680614,-1876.89,0.00044383,32]
[325352249,1714746680624,-10582.7,0.00044383,32]
[325352250,1714746680633,-2381.34,0.00044383,32]
[325352251,1714746680643,-500.0,0.00044383,32]
[325352252,1714746680652,-11964.48,0.00044383,32]
[325352253,1714746680661,-500.0,0.00044383,32]
[325352254,1714746680671,-3561.48,0.00044383,32]
[325352255,1714746680681,-13838.61,0.00044383,32]
[325352256,1714746680692,-675.6,0.00044383,32]
[325352257,1714746680702,-743.73,0.00044383,32]
[325352258,1714746680712,-5033.62,0.00044383,32]
[325352259,1714746680722,-1483.46,0.00044383,32]
[325352260,1714746680731,-500.0,0.00044383,32]
[325352261,1714746680741,-782.69,0.00044383,32]
[325352262,1714746680750,-500.0,0.00044383,32]
[325352263,1714746680760,-1230.14,0.00044383,32]
[325352264,1714746680770,-500.0,0.00044383,32]
[325352265,1714746680780,-500.0,0.00044383,32]
[325352266,1714746680801,-1613.04,0.00044383,32]
[325352267,1714746680821,-2059.1,0.00044383,32]
[325352268,1714746680841,-8517.25,0.00044383,32]
[325352269,1714746680861,-15490.9,0.00044383,32]
[325352270,1714746680887,-500.0,0.00044383,32]
[325352271,1714746680908,-54884.93,0.00044383,32]
[325352272,1714746680927,-562.19,0.00044383,32]
[325352273,1714746680944,-500.0,0.00044383,32]
[325352274,1714746680965,-990.53,0.00044383,32]
[325352275,1714746680987,-500.0,0.00044383,32]
[325352276,1714746681001,-500.0,0.00044383,32]
[325352277,1714746681020,-3458.76,0.00044383,32]
[325352278,1714746681036,-4499.14,0.00044383,32]
[325352279,1714746681052,-500.0,0.00044383,32]
[325352280,1714746681067,-2602.67,0.00044383,32]
[325352281,1714746681084,-2374.67,0.00044383,32]
[325352282,1714746681100,-500.0,0.00044383,32]
[325352283,1714746681122,-835.19,0.00044383,32]
[325352284,1714746681137,-1282.14,0.00044383,32]
[325352285,1714746681153,-500.0,0.00044383,32]
[325352286,1714746681169,-500.0,0.00044383,32]
[325352287,1714746681184,-1927.9,0.00044383,32]
[325352288,1714746681202,-500.0,0.00044383,32]